[Event "Early-Titled-Tuesday-Blitz-January-23-2024"]
[Site "Chess.com"]
[Date "2024.01.23"]
[Round "9"]
[White "Alenzer"]
[Black "ViktoriyaTarasova"]
[Result "0-1"]
[WhiteElo "2150"]
[BlackElo "2293"]
[TimeControl "180+1"]
[EndTime "9:46:52 PST"]
[Termination "ViktoriyaTarasova won by checkmate"]

1. e4 {[%clk 0:03:00.9]} 1... e5 {[%clk 0:02:58.8]} 2. Nf3 {[%clk 0:03:00.5]}
2... Nc6 {[%clk 0:02:56.1]} 3. Bb5 {[%clk 0:02:59.7]} 3... Nf6 {[%clk
0:02:49.3]} 4. O-O {[%clk 0:02:50.1]} 4... Nxe4 {[%clk 0:02:47.7]} 5. Re1 {[%clk
0:02:49.6]} 5... Nd6 {[%clk 0:02:46.9]} 6. a4 {[%clk 0:02:49.4]} 6... f6 {[%clk
0:02:41.5]} 7. Bxc6 {[%clk 0:02:09.7]} 7... dxc6 {[%clk 0:02:40.4]} 8. Nxe5
{[%clk 0:01:56.3]} 8... fxe5 {[%clk 0:02:37]} 9. Qh5+ {[%clk 0:01:55.3]} 9...
Nf7 {[%clk 0:02:36.1]} 10. Rxe5+ {[%clk 0:01:44.3]} 10... Be7 {[%clk 0:02:35.6]}
11. Ra3 {[%clk 0:01:31.3]} 11... O-O {[%clk 0:02:28.4]} 12. Rxe7 {[%clk
0:01:14.9]} 12... Qxe7 {[%clk 0:02:27.2]} 13. Re3 {[%clk 0:01:14.4]} 13... Qf6
{[%clk 0:02:21.6]} 14. Nc3 {[%clk 0:01:10.5]} 14... Bf5 {[%clk 0:02:19.4]} 15.
d3 {[%clk 0:01:07.5]} 15... Rfe8 {[%clk 0:02:18.3]} 16. Ne4 {[%clk 0:01:02]}
16... Qg6 {[%clk 0:02:13.8]} 17. Qf3 {[%clk 0:00:54.8]} 17... Nd6 {[%clk
0:02:07.4]} 18. Ng3 {[%clk 0:00:52.6]} 18... Bg4 {[%clk 0:02:03.5]} 19. Qf4
{[%clk 0:00:46.5]} 19... h5 {[%clk 0:01:49.1]} 20. h3 {[%clk 0:00:41.7]} 20...
Bd7 {[%clk 0:01:48.1]} 21. Bd2 {[%clk 0:00:37]} 21... Nf5 {[%clk 0:01:43.2]} 22.
Rf3 {[%clk 0:00:30.2]} 22... Nxg3 {[%clk 0:01:23.8]} 23. Rxg3 {[%clk 0:00:30.1]}
23... Qf7 {[%clk 0:01:19.2]} 24. Qd4 {[%clk 0:00:24]} 24... Bf5 {[%clk
0:01:09.9]} 25. Bh6 {[%clk 0:00:17.4]} 25... Bg6 {[%clk 0:01:10.2]} 26. Be3
{[%clk 0:00:15.9]} 26... b6 {[%clk 0:01:04.7]} 27. b3 {[%clk 0:00:15.6]} 27...
Re6 {[%clk 0:01:02.4]} 28. Bg5 {[%clk 0:00:14.1]} 28... Rae8 {[%clk 0:01:02]}
29. Kh2 {[%clk 0:00:13.7]} 29... Re5 {[%clk 0:00:58.8]} 30. Be3 {[%clk
0:00:13.5]} 30... Rf5 {[%clk 0:00:49.9]} 31. Qc3 {[%clk 0:00:13]} 31... h4
{[%clk 0:00:45.3]} 32. Rg4 {[%clk 0:00:11.8]} 32... Rfe5 {[%clk 0:00:19.4]} 33.
Bd4 {[%clk 0:00:11.4]} 33... R5e7 {[%clk 0:00:17.6]} 34. Be3 {[%clk 0:00:11.2]}
34... Rxe3 {[%clk 0:00:15.9]} 35. fxe3 {[%clk 0:00:10.5]} 35... Rxe3 {[%clk
0:00:14]} 36. Qxc6 {[%clk 0:00:10.8]} 36... Re6 {[%clk 0:00:14]} 37. Qc3 {[%clk
0:00:09.7]} 37... Qe7 {[%clk 0:00:11.9]} 38. Qd4 {[%clk 0:00:08.8]} 38... Qd6+
{[%clk 0:00:11.4]} 39. Qxd6 {[%clk 0:00:05.5]} 39... Rxd6 {[%clk 0:00:12]} 40.
Rxh4 {[%clk 0:00:06.1]} 40... Rc6 {[%clk 0:00:11.6]} 41. c4 {[%clk 0:00:05.9]}
41... Rd6 {[%clk 0:00:11.3]} 42. Rg4 {[%clk 0:00:05.6]} 42... Bxd3 {[%clk
0:00:10.8]} 43. h4 {[%clk 0:00:06.1]} 43... Bc2 {[%clk 0:00:11]} 44. b4 {[%clk
0:00:06]} 44... Bxa4 {[%clk 0:00:09.9]} 45. c5 {[%clk 0:00:06.6]} 45... Rd7
{[%clk 0:00:07.8]} 46. cxb6 {[%clk 0:00:06.5]} 46... axb6 {[%clk 0:00:07.5]} 47.
Rc4 {[%clk 0:00:07]} 47... Bb5 {[%clk 0:00:07.2]} 48. Re4 {[%clk 0:00:07.4]}
48... c6 {[%clk 0:00:07.4]} 49. Re6 {[%clk 0:00:06.7]} 49... Kf7 {[%clk
0:00:07.6]} 50. Re3 {[%clk 0:00:06.6]} 50... Rd4 {[%clk 0:00:07.2]} 51. Rf3+
{[%clk 0:00:06.5]} 51... Kg8 {[%clk 0:00:06.8]} 52. g3 {[%clk 0:00:06.8]} 52...
Rxb4 {[%clk 0:00:07.1]} 53. Re3 {[%clk 0:00:06.9]} 53... Rc4 {[%clk 0:00:07.7]}
54. Rf3 {[%clk 0:00:06.6]} 54... Kh7 {[%clk 0:00:07.8]} 55. Rb3 {[%clk
0:00:06.6]} 55... Kg6 {[%clk 0:00:08]} 56. Kh3 {[%clk 0:00:06.9]} 56... Kf6
{[%clk 0:00:08.5]} 57. Rf3+ {[%clk 0:00:07]} 57... Ke6 {[%clk 0:00:08.7]} 58.
Re3+ {[%clk 0:00:07.1]} 58... Kd6 {[%clk 0:00:08.8]} 59. Rf3 {[%clk 0:00:07.3]}
59... Re4 {[%clk 0:00:07.6]} 60. Rf7 {[%clk 0:00:07.3]} 60... Re7 {[%clk
0:00:07.9]} 61. Rf4 {[%clk 0:00:07.4]} 61... c5 {[%clk 0:00:08.2]} 62. Rf1
{[%clk 0:00:06.8]} 62... Bxf1+ {[%clk 0:00:07]} 63. Kh2 {[%clk 0:00:06.8]} 63...
Bb5 {[%clk 0:00:07.6]} 64. Kh3 {[%clk 0:00:06.8]} 64... Bc6 {[%clk 0:00:08.2]}
65. h5 {[%clk 0:00:07.3]} 65... b5 {[%clk 0:00:08.5]} 66. Kh4 {[%clk 0:00:08.2]}
66... b4 {[%clk 0:00:08.6]} 67. g4 {[%clk 0:00:08.8]} 67... b3 {[%clk
0:00:09.1]} 68. h6 {[%clk 0:00:09.2]} 68... gxh6 {[%clk 0:00:09]} 69. Kh5 {[%clk
0:00:09.5]} 69... b2 {[%clk 0:00:08.9]} 70. Kxh6 {[%clk 0:00:09.7]} 70... b1=Q
{[%clk 0:00:09.3]} 71. g5 {[%clk 0:00:10.6]} 71... Qh7# {[%clk 0:00:07.9]} 0-1

[Event "Early-Titled-Tuesday-Blitz-January-23-2024"]
[Site "Chess.com"]
[Date "2024.01.23"]
[Round "9"]
[White "DefiantChair"]
[Black "enriquetejedor"]
[Result "0-1"]
[WhiteElo "2556"]
[BlackElo "2726"]
[TimeControl "180+1"]
[EndTime "9:47:01 PST"]
[Termination "enriquetejedor won by checkmate"]

1. e4 {[%clk 0:03:00.9]} 1... c6 {[%clk 0:02:20.8]} 2. d4 {[%clk 0:03:00]} 2...
d5 {[%clk 0:02:19.8]} 3. e5 {[%clk 0:03:00.2]} 3... h6 {[%clk 0:02:17.2]} 4. f4
{[%clk 0:02:57.6]} 4... c5 {[%clk 0:02:14.3]} 5. Nf3 {[%clk 0:02:52.5]} 5...
cxd4 {[%clk 0:02:12.4]} 6. Nxd4 {[%clk 0:02:52.3]} 6... Nc6 {[%clk 0:02:13.3]}
7. c3 {[%clk 0:02:51.9]} 7... e6 {[%clk 0:02:10.9]} 8. Be3 {[%clk 0:02:50.5]}
8... Nge7 {[%clk 0:02:07.7]} 9. Bd3 {[%clk 0:02:49.1]} 9... h5 {[%clk
0:02:04.8]} 10. Nd2 {[%clk 0:02:47.3]} 10... g6 {[%clk 0:02:05.1]} 11. N2b3
{[%clk 0:02:47.3]} 11... Nf5 {[%clk 0:02:03.7]} 12. Nxf5 {[%clk 0:02:44.6]}
12... exf5 {[%clk 0:02:01.5]} 13. Qd2 {[%clk 0:02:40.5]} 13... Be7 {[%clk
0:02:00.2]} 14. O-O-O {[%clk 0:02:40.2]} 14... Be6 {[%clk 0:02:00.8]} 15. Be2
{[%clk 0:02:39.7]} 15... Rc8 {[%clk 0:01:59.8]} 16. Kb1 {[%clk 0:02:39.8]} 16...
a6 {[%clk 0:01:58.2]} 17. Bf3 {[%clk 0:02:36]} 17... Na5 {[%clk 0:01:56]} 18.
Bxd5 {[%clk 0:02:09.3]} 18... Qxd5 {[%clk 0:01:49.5]} 19. Qxd5 {[%clk
0:02:09.1]} 19... Bxd5 {[%clk 0:01:50.4]} 20. Rxd5 {[%clk 0:02:09.7]} 20... Nc4
{[%clk 0:01:50.5]} 21. Bc1 {[%clk 0:02:08.3]} 21... h4 {[%clk 0:01:47.6]} 22.
Rhd1 {[%clk 0:02:06.4]} 22... h3 {[%clk 0:01:46.8]} 23. g3 {[%clk 0:02:04.3]}
23... Rc7 {[%clk 0:01:46.4]} 24. R5d3 {[%clk 0:02:03.7]} 24... O-O {[%clk
0:01:28.1]} 25. Nd4 {[%clk 0:02:03.1]} 25... Bc5 {[%clk 0:01:26.6]} 26. Nf3
{[%clk 0:02:02.7]} 26... Be7 {[%clk 0:01:19.8]} 27. Ng1 {[%clk 0:02:01.3]} 27...
b5 {[%clk 0:01:17.2]} 28. Nxh3 {[%clk 0:02:00.8]} 28... b4 {[%clk 0:01:17.8]}
29. b3 {[%clk 0:02:00]} 29... Nb6 {[%clk 0:01:06.3]} 30. c4 {[%clk 0:01:59.7]}
30... a5 {[%clk 0:01:01.8]} 31. Be3 {[%clk 0:01:59.1]} 31... Rb8 {[%clk
0:01:00.7]} 32. Bxb6 {[%clk 0:01:58.4]} 32... Rxb6 {[%clk 0:00:58.1]} 33. Rd7
{[%clk 0:01:56.5]} 33... Rbb7 {[%clk 0:00:58.6]} 34. Rxc7 {[%clk 0:01:56.2]}
34... Rxc7 {[%clk 0:00:59.5]} 35. Ng1 {[%clk 0:01:56.2]} 35... g5 {[%clk
0:00:56]} 36. Nf3 {[%clk 0:01:55.1]} 36... gxf4 {[%clk 0:00:53.7]} 37. gxf4
{[%clk 0:01:56]} 37... f6 {[%clk 0:00:53.2]} 38. e6 {[%clk 0:01:52.8]} 38... Bc5
{[%clk 0:00:51.1]} 39. Nd4 {[%clk 0:01:51.6]} 39... Re7 {[%clk 0:00:44.8]} 40.
Kc2 {[%clk 0:01:40]} 40... Kh7 {[%clk 0:00:44.3]} 41. Nxf5 {[%clk 0:01:37.2]}
41... Rxe6 {[%clk 0:00:42.7]} 42. Ng3 {[%clk 0:01:32.9]} 42... a4 {[%clk
0:00:34.4]} 43. Rd5 {[%clk 0:01:28.1]} 43... Bg1 {[%clk 0:00:30.4]} 44. bxa4
{[%clk 0:01:24.9]} 44... Re3 {[%clk 0:00:28]} 45. Rd7+ {[%clk 0:01:16.3]} 45...
Kg6 {[%clk 0:00:26.7]} 46. a5 {[%clk 0:01:09.7]} 46... Ra3 {[%clk 0:00:23.4]}
47. f5+ {[%clk 0:01:07.1]} 47... Kh6 {[%clk 0:00:16.9]} 48. Ne4 {[%clk
0:00:59.9]} 48... Rxa2+ {[%clk 0:00:17.1]} 49. Kb3 {[%clk 0:00:59.6]} 49... Rxa5
{[%clk 0:00:18]} 50. Nxf6 {[%clk 0:00:56.5]} 50... Rxf5 {[%clk 0:00:16.1]} 51.
Nd5 {[%clk 0:00:56.7]} 51... Bc5 {[%clk 0:00:11.5]} 52. Rc7 {[%clk 0:00:51.1]}
52... Rf3+ {[%clk 0:00:10.3]} 53. Kc2 {[%clk 0:00:47.4]} 53... b3+ {[%clk
0:00:10.1]} 54. Kd2 {[%clk 0:00:47.7]} 54... b2 {[%clk 0:00:06.2]} 55. Rb7
{[%clk 0:00:46.4]} 55... Bd4 {[%clk 0:00:05.2]} 56. Kc2 {[%clk 0:00:40.7]} 56...
Rf2+ {[%clk 0:00:05.2]} 57. Kd3 {[%clk 0:00:40.9]} 57... Bg7 {[%clk 0:00:03.6]}
58. c5 {[%clk 0:00:40.8]} 58... Rf1 {[%clk 0:00:03.9]} 59. Rb6+ {[%clk
0:00:32.3]} 59... Kh7 {[%clk 0:00:03.5]} 60. Kc2 {[%clk 0:00:31.1]} 60... Rc1+
{[%clk 0:00:03]} 61. Kd3 {[%clk 0:00:30.5]} 61... b1=Q+ {[%clk 0:00:02.8]} 62.
Rxb1 {[%clk 0:00:31.4]} 62... Rxb1 {[%clk 0:00:03.6]} 63. Kc4 {[%clk 0:00:29.5]}
63... Be5 {[%clk 0:00:03]} 64. h4 {[%clk 0:00:28.3]} 64... Kg6 {[%clk
0:00:02.9]} 65. c6 {[%clk 0:00:28.5]} 65... Kf7 {[%clk 0:00:02.4]} 66. Kd3
{[%clk 0:00:27]} 66... Ke6 {[%clk 0:00:02.4]} 67. Ne3 {[%clk 0:00:26.6]} 67...
Bc7 {[%clk 0:00:02]} 68. Nc4 {[%clk 0:00:26.3]} 68... Rh1 {[%clk 0:00:02.5]} 69.
Na3 {[%clk 0:00:23.9]} 69... Rh3+ {[%clk 0:00:02.7]} 70. Kc4 {[%clk 0:00:23.6]}
70... Rxa3 {[%clk 0:00:03.6]} 71. h5 {[%clk 0:00:24.2]} 71... Rh3 {[%clk
0:00:04]} 72. Kb5 {[%clk 0:00:24.6]} 72... Rxh5+ {[%clk 0:00:04.3]} 73. Ka6
{[%clk 0:00:25.5]} 73... Kd6 {[%clk 0:00:04.3]} 74. Kb7 {[%clk 0:00:26.4]} 74...
Rb5+ {[%clk 0:00:04.5]} 75. Kc8 {[%clk 0:00:26.5]} 75... Rb8# {[%clk 0:00:04.5]}
0-1

[Event "Early-Titled-Tuesday-Blitz-January-23-2024"]
[Site "Chess.com"]
[Date "2024.01.23"]
[Round "9"]
[White "1mbl4"]
[Black "vasblesk"]
[Result "0-1"]
[WhiteElo "2576"]
[BlackElo "2780"]
[TimeControl "180+1"]
[EndTime "9:47:05 PST"]
[Termination "vasblesk won by resignation"]

1. d4 {[%clk 0:03:00.9]} 1... d5 {[%clk 0:02:59.5]} 2. Nf3 {[%clk 0:03:01]} 2...
Nf6 {[%clk 0:02:59.1]} 3. Bf4 {[%clk 0:03:01.2]} 3... c5 {[%clk 0:02:58.5]} 4.
e3 {[%clk 0:03:01.4]} 4... e6 {[%clk 0:02:58.4]} 5. Nbd2 {[%clk 0:02:55.2]} 5...
Qb6 {[%clk 0:02:58.1]} 6. Rb1 {[%clk 0:02:52.8]} 6... Bd7 {[%clk 0:02:58]} 7.
Ne5 {[%clk 0:02:36.1]} 7... Bb5 {[%clk 0:02:56.7]} 8. c4 {[%clk 0:02:32.9]} 8...
dxc4 {[%clk 0:02:45.8]} 9. Ndxc4 {[%clk 0:02:30.5]} 9... Qa6 {[%clk 0:02:32.3]}
10. Be2 {[%clk 0:01:48.3]} 10... cxd4 {[%clk 0:02:24]} 11. exd4 {[%clk
0:01:31.9]} 11... Bb4+ {[%clk 0:02:21.5]} 12. Bd2 {[%clk 0:01:31.4]} 12... Bxd2+
{[%clk 0:02:21.4]} 13. Qxd2 {[%clk 0:01:31.1]} 13... O-O {[%clk 0:02:20.5]} 14.
O-O {[%clk 0:01:30.5]} 14... Nbd7 {[%clk 0:02:09.5]} 15. b3 {[%clk 0:01:28.8]}
15... Rad8 {[%clk 0:02:05.6]} 16. a4 {[%clk 0:01:23.9]} 16... Nxe5 {[%clk
0:01:34.3]} 17. axb5 {[%clk 0:01:15.5]} 17... Qxb5 {[%clk 0:01:34.5]} 18. Nd6
{[%clk 0:00:58.3]} 18... Qd5 {[%clk 0:01:28.5]} 19. Qb2 {[%clk 0:00:44.4]} 19...
Ng6 {[%clk 0:01:16.3]} 20. Nc4 {[%clk 0:00:36]} 20... Qxd4 {[%clk 0:01:00.6]}
21. Qa3 {[%clk 0:00:35.9]} 21... a6 {[%clk 0:00:45.8]} 22. Bf3 {[%clk
0:00:33.6]} 22... b5 {[%clk 0:00:43.2]} 23. Na5 {[%clk 0:00:32.8]} 23... Ne5
{[%clk 0:00:40.9]} 24. b4 {[%clk 0:00:31.9]} 24... Qd3 {[%clk 0:00:36.2]} 25.
Qxd3 {[%clk 0:00:31.4]} 25... Rxd3 {[%clk 0:00:35.7]} 26. Bb7 {[%clk 0:00:31.4]}
26... Rd6 {[%clk 0:00:33]} 27. Rfc1 {[%clk 0:00:29.9]} 27... g5 {[%clk
0:00:24.9]} 28. h3 {[%clk 0:00:29.7]} 28... Kg7 {[%clk 0:00:24.8]} 29. Rc7
{[%clk 0:00:27.7]} 29... Rfd8 {[%clk 0:00:23.5]} 30. Re1 {[%clk 0:00:24]} 30...
Nd3 {[%clk 0:00:21.5]} 31. Rb1 {[%clk 0:00:23.6]} 31... h5 {[%clk 0:00:21.4]}
32. Nc6 {[%clk 0:00:19.6]} 32... R8d7 {[%clk 0:00:21.9]} 33. Rxd7 {[%clk
0:00:19.6]} 33... Nxd7 {[%clk 0:00:22]} 34. Na5 {[%clk 0:00:15]} 34... N7e5
{[%clk 0:00:20.5]} 35. Rb3 {[%clk 0:00:13.3]} 35... h4 {[%clk 0:00:18.6]} 36.
Rb1 {[%clk 0:00:10.9]} 36... Nf4 {[%clk 0:00:17.1]} 37. Bc8 {[%clk 0:00:09.5]}
37... Ned3 {[%clk 0:00:16.1]} 38. Bb7 {[%clk 0:00:09.5]} 38... Ne2+ {[%clk
0:00:15.8]} 39. Kf1 {[%clk 0:00:09.3]} 39... Nc3 {[%clk 0:00:13.2]} 40. Rb3
{[%clk 0:00:09.5]} 40... Na2 {[%clk 0:00:13.5]} 41. Rb1 {[%clk 0:00:08.9]} 41...
Naxb4 {[%clk 0:00:12.8]} 42. Bf3 {[%clk 0:00:09]} 42... Nc2 {[%clk 0:00:12.2]}
43. Nb7 {[%clk 0:00:08.4]} 43... Rd4 {[%clk 0:00:12.2]} 44. Rd1 {[%clk
0:00:08.4]} 44... Ne5 {[%clk 0:00:12.4]} 45. Rc1 {[%clk 0:00:08.3]} 45... Nxf3
{[%clk 0:00:11.4]} 46. gxf3 {[%clk 0:00:09.2]} 46... Nb4 {[%clk 0:00:11.2]} 47.
Nc5 {[%clk 0:00:09.1]} 47... Rc4 {[%clk 0:00:09.5]} 48. Rxc4 {[%clk 0:00:08.4]}
48... bxc4 {[%clk 0:00:10.4]} 49. Ke2 {[%clk 0:00:08.6]} 49... a5 {[%clk
0:00:11]} 50. Kd2 {[%clk 0:00:08.9]} 50... Nd5 {[%clk 0:00:11.2]} 51. Nb7 {[%clk
0:00:08.1]} 51... a4 {[%clk 0:00:11.1]} 52. Na5 {[%clk 0:00:07.7]} 52... c3+
{[%clk 0:00:10.1]} 53. Kc1 {[%clk 0:00:07.5]} 53... Nf4 {[%clk 0:00:10]} 54. Kc2
{[%clk 0:00:06.2]} 54... Nxh3 {[%clk 0:00:10]} 55. Kxc3 {[%clk 0:00:06.7]} 55...
Nxf2 {[%clk 0:00:10.4]} 56. Kd2 {[%clk 0:00:07.6]} 56... h3 {[%clk 0:00:10.8]}
57. Ke2 {[%clk 0:00:07.7]} 57... h2 {[%clk 0:00:11.4]} 58. Kxf2 {[%clk
0:00:08.6]} 58... h1=Q {[%clk 0:00:12.3]} 59. Nc4 {[%clk 0:00:08.9]} 59... Qh2+
{[%clk 0:00:12.7]} 60. Ke3 {[%clk 0:00:09.2]} 60... Qf4+ {[%clk 0:00:13.4]} 61.
Kd3 {[%clk 0:00:09.3]} 61... Qxf3+ {[%clk 0:00:14]} 62. Kd4 {[%clk 0:00:09]}
62... Qd5+ {[%clk 0:00:14.1]} 63. Kc3 {[%clk 0:00:09.4]} 63... g4 {[%clk
0:00:14.3]} 64. Ne3 {[%clk 0:00:09.1]} 64... Qc5+ {[%clk 0:00:14.9]} 65. Kd3
{[%clk 0:00:09.1]} 65... g3 {[%clk 0:00:15.8]} 66. Ng2 {[%clk 0:00:08.7]} 66...
Qf2 {[%clk 0:00:15.9]} 67. Ne3 {[%clk 0:00:08.9]} 67... g2 {[%clk 0:00:15.8]}
68. Nxg2 {[%clk 0:00:09.2]} 68... Qxg2 {[%clk 0:00:16.7]} 69. Ke3 {[%clk
0:00:09.6]} 69... Qg4 {[%clk 0:00:16.1]} 70. Kd3 {[%clk 0:00:09.5]} 70... Kf6
{[%clk 0:00:16.1]} 71. Ke3 {[%clk 0:00:09.5]} 71... Ke5 {[%clk 0:00:16.7]} 72.
Kd3 {[%clk 0:00:10.2]} 72... Qd4+ {[%clk 0:00:17.4]} 73. Kc2 {[%clk 0:00:10.1]}
73... Qe3 {[%clk 0:00:17.6]} 74. Kb2 {[%clk 0:00:10]} 74... Kd4 {[%clk
0:00:18.1]} 75. Ka2 {[%clk 0:00:10.1]} 75... Qd2+ {[%clk 0:00:17.4]} 76. Ka3
{[%clk 0:00:10]} 76... Kc4 {[%clk 0:00:17.8]} 0-1

[Event "Early-Titled-Tuesday-Blitz-January-23-2024"]
[Site "Chess.com"]
[Date "2024.01.23"]
[Round "9"]
[White "VladimirKramnik"]
[Black "wonderfultime"]
[Result "1/2-1/2"]
[WhiteElo "2945"]
[BlackElo "3039"]
[TimeControl "180+1"]
[EndTime "9:47:10 PST"]
[Termination "Game drawn by stalemate"]

1. e4 {[%clk 0:03:00.9]} 1... e5 {[%clk 0:02:52.1]} 2. Nf3 {[%clk 0:03:00.8]}
2... Nc6 {[%clk 0:02:51.9]} 3. Bc4 {[%clk 0:02:59.6]} 3... Bc5 {[%clk
0:02:51.4]} 4. d3 {[%clk 0:02:59.1]} 4... d6 {[%clk 0:02:50.9]} 5. c3 {[%clk
0:02:57.1]} 5... Nf6 {[%clk 0:02:51.2]} 6. O-O {[%clk 0:02:55.7]} 6... a6 {[%clk
0:02:51.5]} 7. Re1 {[%clk 0:02:55]} 7... Ba7 {[%clk 0:02:50.3]} 8. a4 {[%clk
0:02:54.3]} 8... O-O {[%clk 0:02:48.1]} 9. h3 {[%clk 0:02:53.3]} 9... h6 {[%clk
0:02:48]} 10. Nbd2 {[%clk 0:02:53.5]} 10... Ne7 {[%clk 0:02:42.8]} 11. d4 {[%clk
0:02:50.3]} 11... Ng6 {[%clk 0:02:41.4]} 12. Bf1 {[%clk 0:02:43.5]} 12... Re8
{[%clk 0:02:38.6]} 13. Qc2 {[%clk 0:02:41]} 13... d5 {[%clk 0:02:23.7]} 14. exd5
{[%clk 0:02:33.2]} 14... exd4 {[%clk 0:02:23.7]} 15. Rxe8+ {[%clk 0:02:29.7]}
15... Qxe8 {[%clk 0:02:24.6]} 16. c4 {[%clk 0:02:22.4]} 16... c6 {[%clk
0:02:05]} 17. b4 {[%clk 0:02:21.2]} 17... cxd5 {[%clk 0:01:59.1]} 18. c5 {[%clk
0:02:21.3]} 18... Ne4 {[%clk 0:01:50.1]} 19. Nxd4 {[%clk 0:02:13.6]} 19... Bd7
{[%clk 0:01:34.3]} 20. Bb2 {[%clk 0:01:59.1]} 20... a5 {[%clk 0:01:09.1]} 21.
Nxe4 {[%clk 0:01:44.9]} 21... dxe4 {[%clk 0:01:10]} 22. b5 {[%clk 0:01:28.1]}
22... Rc8 {[%clk 0:01:09]} 23. Nb3 {[%clk 0:01:27.6]} 23... Be6 {[%clk
0:00:59.3]} 24. Qc3 {[%clk 0:01:23.7]} 24... Qf8 {[%clk 0:00:48.5]} 25. Qxa5
{[%clk 0:01:19.1]} 25... Bb8 {[%clk 0:00:34.3]} 26. Nd4 {[%clk 0:01:11.1]} 26...
e3 {[%clk 0:00:25.6]} 27. fxe3 {[%clk 0:00:45]} 27... Bd5 {[%clk 0:00:21.6]} 28.
Nf5 {[%clk 0:00:32.8]} 28... Be4 {[%clk 0:00:18.2]} 29. Nd6 {[%clk 0:00:20.6]}
29... Bxd6 {[%clk 0:00:18.2]} 30. cxd6 {[%clk 0:00:20.9]} 30... Qxd6 {[%clk
0:00:18.7]} 31. Qe1 {[%clk 0:00:18.8]} 31... Rc2 {[%clk 0:00:18.7]} 32. Rd1
{[%clk 0:00:17.7]} 32... Qe7 {[%clk 0:00:12.8]} 33. Rd2 {[%clk 0:00:17.1]} 33...
Qc7 {[%clk 0:00:12.7]} 34. Rxc2 {[%clk 0:00:08.6]} 34... Qxc2 {[%clk 0:00:13.6]}
35. Qc3 {[%clk 0:00:08.5]} 35... Qxc3 {[%clk 0:00:09.9]} 36. Bxc3 {[%clk
0:00:09]} 36... Ne7 {[%clk 0:00:10.8]} 37. a5 {[%clk 0:00:08.6]} 37... Nd5
{[%clk 0:00:10.9]} 38. Bd4 {[%clk 0:00:09.2]} 38... Nb4 {[%clk 0:00:10.6]} 39.
a6 {[%clk 0:00:08.6]} 39... bxa6 {[%clk 0:00:11.5]} 40. bxa6 {[%clk 0:00:08.8]}
40... Ba8 {[%clk 0:00:09.2]} 41. Bc5 {[%clk 0:00:08.2]} 41... Nd5 {[%clk
0:00:07.5]} 42. Kf2 {[%clk 0:00:08.6]} 42... Nc3 {[%clk 0:00:06.8]} 43. Ke1
{[%clk 0:00:07]} 43... g5 {[%clk 0:00:05.7]} 44. Bd4 {[%clk 0:00:07.4]} 44...
Ne4 {[%clk 0:00:05.7]} 45. a7 {[%clk 0:00:07.4]} 45... f5 {[%clk 0:00:04.7]} 46.
Be2 {[%clk 0:00:07.3]} 46... Kf7 {[%clk 0:00:05.2]} 47. g4 {[%clk 0:00:05.7]}
47... Ke6 {[%clk 0:00:04.7]} 48. gxf5+ {[%clk 0:00:05.3]} 48... Kxf5 {[%clk
0:00:05.6]} 49. Bg4+ {[%clk 0:00:05.5]} 49... Kg6 {[%clk 0:00:06.3]} 50. Ke2
{[%clk 0:00:05.7]} 50... h5 {[%clk 0:00:07]} 51. Bd7 {[%clk 0:00:05.9]} 51... g4
{[%clk 0:00:05.5]} 52. hxg4 {[%clk 0:00:05.3]} 52... h4 {[%clk 0:00:06.3]} 53.
Bf5+ {[%clk 0:00:05]} 53... Kg5 {[%clk 0:00:06.9]} 54. Be5 {[%clk 0:00:05.4]}
54... h3 {[%clk 0:00:06]} 55. Bf4+ {[%clk 0:00:05.2]} 55... Kh4 {[%clk
0:00:06.8]} 56. Bxe4 {[%clk 0:00:05.2]} 56... Bxe4 {[%clk 0:00:07.7]} 57. g5
{[%clk 0:00:05]} 57... h2 {[%clk 0:00:05.4]} 58. Bxh2 {[%clk 0:00:05.1]} 58...
Kxg5 {[%clk 0:00:06.2]} 59. Kd2 {[%clk 0:00:05.6]} 59... Kf5 {[%clk 0:00:06.9]}
60. Kc3 {[%clk 0:00:06]} 60... Ke6 {[%clk 0:00:07.1]} 61. Kd4 {[%clk 0:00:06.6]}
61... Ba8 {[%clk 0:00:07.9]} 62. Kc5 {[%clk 0:00:07.1]} 62... Bg2 {[%clk
0:00:07.5]} 63. Kb6 {[%clk 0:00:06.6]} 63... Kd7 {[%clk 0:00:08.1]} 64. Bf4
{[%clk 0:00:06.3]} 64... Bf3 {[%clk 0:00:08.3]} 65. Kc5 {[%clk 0:00:06.6]} 65...
Kc8 {[%clk 0:00:08.1]} 66. Kb6 {[%clk 0:00:05.1]} 66... Be4 {[%clk 0:00:08.3]}
67. Be5 {[%clk 0:00:05.6]} 67... Bf3 {[%clk 0:00:08.6]} 68. Bg3 {[%clk
0:00:06.1]} 68... Be4 {[%clk 0:00:09.2]} 69. Be5 {[%clk 0:00:05.7]} 69... Bf3
{[%clk 0:00:09.8]} 70. Bf4 {[%clk 0:00:06.4]} 70... Be4 {[%clk 0:00:10.5]} 71.
Kc5 {[%clk 0:00:06.9]} 71... Kb7 {[%clk 0:00:10.6]} 72. Bb8 {[%clk 0:00:07.5]}
72... Ka8 {[%clk 0:00:10.9]} 73. Kd4 {[%clk 0:00:07.7]} 73... Bh7 {[%clk
0:00:11.7]} 74. Ke5 {[%clk 0:00:08]} 74... Bb1 {[%clk 0:00:11.7]} 75. e4 {[%clk
0:00:08.2]} 75... Bxe4 {[%clk 0:00:12]} 76. Kxe4 {[%clk 0:00:08.9]} 76... Kb7
{[%clk 0:00:12.7]} 77. Kd5 {[%clk 0:00:08.5]} 77... Ka8 {[%clk 0:00:13.6]} 78.
Kc6 {[%clk 0:00:08.9]} 1/2-1/2